{"text_format":"1","workbook":"xlsx","n_sheets":13,"sheets":["Assinaturas","Lista Apicultores","Rosto Candidatura","B_2_1","B_2_2","B_2_3","B_2_4","B_2_5","B_2_6","B_2_7","B_2_8","Quadro Referência","Dados"],"not_rendered":{"charts":0,"images":0,"macros":0,"external_links":0,"defined_names":2,"comments":0,"pivot_tables":0},"unopened":[],"bounds":{"document_bytes":16777216,"sheet_cells":100000,"rows_first":2000,"rows_last":500,"rows_between":2000,"halvings":0,"cell_chars":16384,"cell_head_chars":4096},"cells_cut":0,"cells_raw":0,"read":"whole","date_system":"1900"}

{"sheet":"Assinaturas","index":0,"n_rows":38,"n_cols":9,"rows_kept":38,"cut":false,"hidden":false,"merged":[[37,0,37,8],[16,0,16,7],[17,0,17,7],[18,0,18,7],[19,0,19,7],[20,0,20,7],[21,0,21,7],[34,0,34,1],[34,2,34,5],[35,0,35,1],[35,2,35,5],[34,6,34,8],[35,6,35,8],[32,0,32,1],[32,2,32,5],[33,0,33,1],[33,2,33,5],[32,6,32,8],[33,6,33,8],[27,0,28,0],[27,1,28,8],[29,0,30,0],[29,1,30,8],[31,0,31,1],[31,2,31,8],[25,0,26,0],[25,1,26,8],[22,0,22,7],[23,0,23,7],[24,1,24,8],[15,0,15,8],[13,0,13,1],[13,2,13,7],[14,0,14,1],[14,2,14,7],[3,0,3,8],[0,0,1,8],[12,0,12,8],[10,0,10,7],[11,0,11,7],[5,1,5,4],[5,6,5,8],[2,0,2,4],[2,6,2,8],[6,0,6,8],[7,0,7,7],[8,0,8,7],[9,0,9,7],[4,0,4,2],[4,3,4,8]]}
["PROGRAMA NACIONAL PARA APOIO AO SETOR DA APICULTURA\nAssinaturas\n"]
[]
["SELECIONAR ",null,null,null,null,null,"Selecionar Ano "]
["Identificação do Beneficiário"]
["Nome/Denominação Social "]
["NIF/NIPC",null,null,null,null,"NIFAP"]
["Tipologia de Beneficiário, de acordo com o artigo 5.º da Portaria n.º 54-G/2023, de 27 de fevereiro"]
["N.º 1, alínea a) - Organizações de Produtores (OP)",null,null,null,null,null,null,null,false]
["N.º 1, alínea b) - Associações e Cooperativas de Apicultores",null,null,null,null,null,null,null,false]
["N.º 1, alínea c) - Uniões, Federações ou Confederações",null,null,null,null,null,null,null,false]
["N.º 2, Regiões Autónomas (RA) - Açores",null,null,null,null,null,null,null,false]
["N.º 2, Regiões Autónomas (RA) - Madeira",null,null,null,null,null,null,null,false]
["Deliberação da Apresentação de Candidatura"]
["Data",null,"Local",null,null,null,null,null,"Doc/Ata nº"]
[]
["Candidatura às Intervenções"]
["B.2.1 «Assistência técnica aos apicultores e organizações de apicultores»",null,null,null,null,null,null,null,false]
["B.2.2 «Luta contra a varroose»",null,null,null,null,null,null,null,false]
["B.2.3 «Combate à Vespa velutina (vespa asiática)»",null,null,null,null,null,null,null,false]
["B.2.4 «Apoio à transumância»",null,null,null,null,null,null,null,false]
["B.2.5 «Análises de qualidade do mel ou outros produtos apícolas»",null,null,null,null,null,null,null,false]
["B.2.6 «Apoio à aquisição de rainhas autóctones selecionadas»",null,null,null,null,null,null,null,false]
["B.2.7 «Apoio a projetos de investigação aplicada»",null,null,null,null,null,null,null,false]
["B.2.8 «Melhoria da qualidade dos produtos apícolas»",null,null,null,null,null,null,null,false]
["Data","Assinatura(s) do(s) Beneficiário/Procurador(es)/Representante(s) Legal(ais)"]
[]
[]
[]
[]
[]
[]
["Representante na Qualidade de:"]
["BI/CC n.º",null,"Data de Validade",null,null,null,"Arquivo de identificação"]
[]
[]
[]
[]
["NOTA: Deve imprimir esta folha ou transformar em pdf para assinatura manual ou digital, consoante o caso."]

{"sheet":"Lista Apicultores","index":1,"n_rows":338,"n_cols":20,"rows_kept":338,"cut":false,"hidden":false,"merged":[[0,0,0,10],[0,11,0,17],[0,18,0,19]]}
["Lista de Apiculores",null,null,null,null,null,null,null,null,null,null,"Intervenções",null,null,null,null,null,null,"Localização dos apiários\n(No caso de candidatura à B.2.3)"]
["Nome do apicultor","Apicultor/UPP/Estabelecimento","Nº de apicultor","NIF","NIFAP","Nº de apiários","Nº de Colmeias","Nº de cortiços/núcleos","Nº de colónias ","Nº de colónias Fora da Zona Controlada","Nº de colónias em Zona Controlada","B.2.1","B.2.2","B.2.3","B.2.4","B.2.5","B.2.6","B.2.8","Concelho","Freguesia"]
[null,"SELECIONAR",null,null,null,null,null,null,null,null,null,false,false,false,false,false,false,false]
[null,"SELECIONAR",null,null,null,null,null,null,null,null,null,false,false,false,false,false,false,false]
[null,"SELECIONAR",null,null,null,null,null,null,null,null,null,false,false,false,false,false,false,false]
[null,"SELECIONAR",null,null,null,null,null,null,null,null,null,false,false,false,false,false,false,false]
[null,"SELECIONAR",null,null,null,null,null,null,null,null,null,false,false,false,false,false,false,false]
[null,"SELECIONAR",null,null,null,null,null,null,null,null,null,false,false,false,false,false,false,false]
[null,"SELECIONAR",null,null,null,null,null,null,null,null,null,false,false,false,false,false,false,false]
[null,"SELECIONAR",null,null,null,null,null,null,null,null,null,false,false,false,false,false,false,false]
[null,"SELECIONAR",null,null,null,null,null,null,null,null,null,false,false,false,false,false,false,false]
[null,"SELECIONAR",null,null,null,null,null,null,null,null,null,false,false,false,false,false,false,false]
[null,"SELECIONAR",null,null,null,null,null,null,null,null,null,false,false,false,false,false,false,false]
[null,"SELECIONAR",null,null,null,null,null,null,null,null,null,false,false,false,false,false,false,false]
[null,"SELECIONAR",null,null,null,null,null,null,null,null,null,false,false,false,false,false,false,false]
[null,"SELECIONAR",null,null,null,null,null,null,null,null,null,false,false,false,false,false,false,false]
[null,"SELECIONAR",null,null,null,null,null,null,null,null,null,false,false,false,false,false,false,false]
[null,"SELECIONAR",null,null,null,null,null,null,null,null,null,false,false,false,false,false,false,false]
[null,"SELECIONAR",null,null,null,null,null,null,null,null,null,false,false,false,false,false,false,false]
[null,"SELECIONAR",null,null,null,null,null,null,null,null,null,false,false,false,false,false,false,false]
[null,"SELECIONAR",null,null,null,null,null,null,null,null,null,false,false,false,false,false,false,false]
[null,"SELECIONAR",null,null,null,null,null,null,null,null,null,false,false,false,false,false,false,false]
[null,"SELECIONAR",null,null,null,null,null,null,null,null,null,false,false,false,false,false,false,false]
[null,"SELECIONAR",null,null,null,null,null,null,null,null,null,false,false,false,false,false,false,false]
[null,"SELECIONAR",null,null,null,null,null,null,null,null,null,false,false,false,false,false,false,false]
[null,"SELECIONAR",null,null,null,null,null,null,null,null,null,false,false,false,false,false,false,false]
[null,"SELECIONAR",null,null,null,null,null,null,null,null,null,false,false,false,false,false,false,false]
[null,"SELECIONAR",null,null,null,null,null,null,null,null,null,false,false,false,false,false,false,false]
[null,"SELECIONAR",null,null,null,null,null,null,null,null,null,false,false,false,false,false,false,false]
[null,"SELECIONAR",null,null,null,null,null,null,null,null,null,false,false,false,false,false,false,false]
[null,"SELECIONAR",null,null,null,null,null,null,null,null,null,false,false,false,false,false,false,false]
[null,"SELECIONAR",null,null,null,null,null,null,null,null,null,false,false,false,false,false,false,false]
[null,"SELECIONAR",null,null,null,null,null,null,null,null,null,false,false,false,false,false,false,false]
[null,"SELECIONAR",null,null,null,null,null,null,null,null,null,false,false,false,false,false,false,false]
[null,"SELECIONAR",null,null,null,null,null,null,null,null,null,false,false,false,false,false,false,false]
[null,"SELECIONAR",null,null,null,null,null,null,null,null,null,false,false,false,false,false,false,false]
[null,"SELECIONAR",null,null,null,null,null,null,null,null,null,false,false,false,false,false,false,false]
[null,"SELECIONAR",null,null,null,null,null,null,null,null,null,false,false,false,false,false,false,false]
[null,"SELECIONAR",null,null,null,null,null,null,null,null,null,false,false,false,false,false,false,false]
[null,"SELECIONAR",null,null,null,null,null,null,null,null,null,false,false,false,false,false,false,false]
[null,"SELECIONAR",null,null,null,null,null,null,null,null,null,false,false,false,false,false,false,false]
[null,"SELECIONAR",null,null,null,null,null,null,null,null,null,false,false,false,false,false,false,false]
[null,"SELECIONAR",null,null,null,null,null,null,null,null,null,false,false,false,false,false,false,false]
[null,"SELECIONAR",null,null,null,null,null,null,null,null,null,false,false,false,false,false,false,false]
[null,"SELECIONAR",null,null,null,null,null,null,null,null,null,false,false,false,false,false,false,false]
[null,"SELECIONAR",null,null,null,null,null,null,null,null,null,false,false,false,false,false,false,false]
[null,"SELECIONAR",null,null,null,null,null,null,null,null,null,false,false,false,false,false,false,false]
[null,"SELECIONAR",null,null,null,null,null,null,null,null,null,false,false,false,false,false,false,false]
[null,"SELECIONAR",null,null,null,null,null,null,null,null,null,false,false,false,false,false,false,false]
[null,"SELECIONAR",null,null,null,null,null,null,null,null,null,false,false,false,false,false,false,false]
[null,"SELECIONAR",null,null,null,null,null,null,null,null,null,false,false,false,false,false,false,false]
[null,"SELECIONAR",null,null,null,null,null,null,null,null,null,false,false,false,false,false,false,false]
[null,"SELECIONAR",null,null,null,null,null,null,null,null,null,false,false,false,false,false,false,false]
[null,"SELECIONAR",null,null,null,null,null,null,null,null,null,false,false,false,false,false,false,false]
[null,"SELECIONAR",null,null,null,null,null,null,null,null,null,false,false,false,false,false,false,false]
[null,"SELECIONAR",null,null,null,null,null,null,null,null,null,false,false,false,false,false,false,false]
[null,"SELECIONAR",null,null,null,null,null,null,null,null,null,false,false,false,false,false,false,false]
[null,"SELECIONAR",null,null,null,null,null,null,null,null,null,false,false,false,false,false,false,false]
[null,"SELECIONAR",null,null,null,null,null,null,null,null,null,false,false,false,false,false,false,false]
[null,"SELECIONAR",null,null,null,null,null,null,null,null,null,false,false,false,false,false,false,false]
[null,"SELECIONAR",null,null,null,null,null,null,null,null,null,false,false,false,false,false,false,false]
[null,"SELECIONAR",null,null,null,null,null,null,null,null,null,false,false,false,false,false,false,false]
[null,"SELECIONAR",null,null,null,null,null,null,null,null,null,false,false,false,false,false,false,false]
[null,"SELECIONAR",null,null,null,null,null,null,null,null,null,false,false,false,false,false,false,false]
[null,"SELECIONAR",null,null,null,null,null,null,null,null,null,false,false,false,false,false,false,false]
[null,"SELECIONAR",null,null,null,null,null,null,null,null,null,false,false,false,false,false,false,false]
[null,"SELECIONAR",null,null,null,null,null,null,null,null,null,false,false,false,false,false,false,false]
[null,"SELECIONAR",null,null,null,null,null,null,null,null,null,false,false,false,false,false,false,false]
[null,"SELECIONAR",null,null,null,null,null,null,null,null,null,false,false,false,false,false,false,false]
[null,"SELECIONAR",null,null,null,null,null,null,null,null,null,false,false,false,false,false,false,false]
[null,"SELECIONAR",null,null,null,null,null,null,null,null,null,false,false,false,false,false,false,false]
[null,"SELECIONAR",null,null,null,null,null,null,null,null,null,false,false,false,false,false,false,false]
[null,"SELECIONAR",null,null,null,null,null,null,null,null,null,false,false,false,false,false,false,false]
[null,"SELECIONAR",null,null,null,null,null,null,null,null,null,false,false,false,false,false,false,false]
[null,"SELECIONAR",null,null,null,null,null,null,null,null,null,false,false,false,false,false,false,false]
[null,"SELECIONAR",null,null,null,null,null,null,null,null,null,false,false,false,false,false,false,false]
[null,"SELECIONAR",null,null,null,null,null,null,null,null,null,false,false,false,false,false,false,false]
[null,"SELECIONAR",null,null,null,null,null,null,null,null,null,false,false,false,false,false,false,false]
[null,"SELECIONAR",null,null,null,null,null,null,null,null,null,false,false,false,false,false,false,false]
[null,"SELECIONAR",null,null,null,null,null,null,null,null,null,false,false,false,false,false,false,false]
[null,"SELECIONAR",null,null,null,null,null,null,null,null,null,false,false,false,false,false,false,false]
[null,"SELECIONAR",null,null,null,null,null,null,null,null,null,false,false,false,false,false,false,false]
[null,"SELECIONAR",null,null,null,null,null,null,null,null,null,false,false,false,false,false,false,false]
[null,"SELECIONAR",null,null,null,null,null,null,null,null,null,false,false,false,false,false,false,false]
[null,"SELECIONAR",null,null,null,null,null,null,null,null,null,false,false,false,false,false,false,false]
[null,"SELECIONAR",null,null,null,null,null,null,null,null,null,false,false,false,false,false,false,false]
[null,"SELECIONAR",null,null,null,null,null,null,null,null,null,false,false,false,false,false,false,false]
[null,"SELECIONAR",null,null,null,null,null,null,null,null,null,false,false,false,false,false,false,false]
[null,"SELECIONAR",null,null,null,null,null,null,null,null,null,false,false,false,false,false,false,false]
[null,"SELECIONAR",null,null,null,null,null,null,null,null,null,false,false,false,false,false,false,false]
[null,"SELECIONAR",null,null,null,null,null,null,null,null,null,false,false,false,false,false,false,false]
[null,"SELECIONAR",null,null,null,null,null,null,null,null,null,false,false,false,false,false,false,false]
[null,"SELECIONAR",null,null,null,null,null,null,null,null,null,false,false,false,false,false,false,false]
[null,"SELECIONAR",null,null,null,null,null,null,null,null,null,false,false,false,false,false,false,false]
[null,"SELECIONAR",null,null,null,null,null,null,null,null,null,false,false,false,false,false,false,false]
[null,"SELECIONAR",null,null,null,null,null,null,null,null,null,false,false,false,false,false,false,false]
[null,"SELECIONAR",null,null,null,null,null,null,null,null,null,false,false,false,false,false,false,false]
[null,"SELECIONAR",null,null,null,null,null,null,null,null,null,false,false,false,false,false,false,false]
[null,"SELECIONAR",null,null,null,null,null,null,null,null,null,false,false,false,false,false,false,false]
[null,"SELECIONAR",null,null,null,null,null,null,null,null,null,false,false,false,false,false,false,false]
[null,"SELECIONAR",null,null,null,null,null,null,null,null,null,false,false,false,false,false,false,false]
[null,"SELECIONAR",null,null,null,null,null,null,null,null,null,false,false,false,false,false,false,false]
[null,"SELECIONAR",null,null,null,null,null,null,null,null,null,false,false,false,false,false,false,false]
[null,"SELECIONAR",null,null,null,null,null,null,null,null,null,false,false,false,false,false,false,false]
[null,"SELECIONAR",null,null,null,null,null,null,null,null,null,false,false,false,false,false,false,false]
[null,"SELECIONAR",null,null,null,null,null,null,null,null,null,false,false,false,false,false,false,false]
[null,"SELECIONAR",null,null,null,null,null,null,null,null,null,false,false,false,false,false,false,false]
[null,"SELECIONAR",null,null,null,null,null,null,null,null,null,false,false,false,false,false,false,false]
[null,"SELECIONAR",null,null,null,null,null,null,null,null,null,false,false,false,false,false,false,false]
[null,"SELECIONAR",null,null,null,null,null,null,null,null,null,false,false,false,false,false,false,false]
[null,"SELECIONAR",null,null,null,null,null,null,null,null,null,false,false,false,false,false,false,false]
[null,"SELECIONAR",null,null,null,null,null,null,null,null,null,false,false,false,false,false,false,false]
[null,"SELECIONAR",null,null,null,null,null,null,null,null,null,false,false,false,false,false,false,false]
[null,"SELECIONAR",null,null,null,null,null,null,null,null,null,false,false,false,false,false,false,false]
[null,"SELECIONAR",null,null,null,null,null,null,null,null,null,false,false,false,false,false,false,false]
[null,"SELECIONAR",null,null,null,null,null,null,null,null,null,false,false,false,false,false,false,false]
[null,"SELECIONAR",null,null,null,null,null,null,null,null,null,false,false,false,false,false,false,false]
[null,"SELECIONAR",null,null,null,null,null,null,null,null,null,false,false,false,false,false,false,false]
[null,"SELECIONAR",null,null,null,null,null,null,null,null,null,false,false,false,false,false,false,false]
[null,"SELECIONAR",null,null,null,null,null,null,null,null,null,false,false,false,false,false,false,false]
[null,"SELECIONAR",null,null,null,null,null,null,null,null,null,false,false,false,false,false,false,false]
[null,"SELECIONAR",null,null,null,null,null,null,null,null,null,false,false,false,false,false,false,false]
[null,"SELECIONAR",null,null,null,null,null,null,null,null,null,false,false,false,false,false,false,false]
[null,"SELECIONAR",null,null,null,null,null,null,null,null,null,false,false,false,false,false,false,false]
[null,"SELECIONAR",null,null,null,null,null,null,null,null,null,false,false,false,false,false,false,false]
[null,"SELECIONAR",null,null,null,null,null,null,null,null,null,false,false,false,false,false,false,false]
[null,"SELECIONAR",null,null,null,null,null,null,null,null,null,false,false,false,false,false,false,false]
[null,"SELECIONAR",null,null,null,null,null,null,null,null,null,false,false,false,false,false,false,false]
[null,"SELECIONAR",null,null,null,null,null,null,null,null,null,false,false,false,false,false,false,false]
[null,"SELECIONAR",null,null,null,null,null,null,null,null,null,false,false,false,false,false,false,false]
[null,"SELECIONAR",null,null,null,null,null,null,null,null,null,false,false,false,false,false,false,false]
[null,"SELECIONAR",null,null,null,null,null,null,null,null,null,false,false,false,false,false,false,false]
[null,"SELECIONAR",null,null,null,null,null,null,null,null,null,false,false,false,false,false,false,false]
[null,"SELECIONAR",null,null,null,null,null,null,null,null,null,false,false,false,false,false,false,false]
[null,"SELECIONAR",null,null,null,null,null,null,null,null,null,false,false,false,false,false,false,false]
[null,"SELECIONAR",null,null,null,null,null,null,null,null,null,false,false,false,false,false,false,false]
[null,"SELECIONAR",null,null,null,null,null,null,null,null,null,false,false,false,false,false,false,false]
[null,"SELECIONAR",null,null,null,null,null,null,null,null,null,false,false,false,false,false,false,false]
[null,"SELECIONAR",null,null,null,null,null,null,null,null,null,false,false,false,false,false,false,false]
[null,"SELECIONAR",null,null,null,null,null,null,null,null,null,false,false,false,false,false,false,false]
[null,"SELECIONAR",null,null,null,null,null,null,null,null,null,false,false,false,false,false,false,false]
[null,"SELECIONAR",null,null,null,null,null,null,null,null,null,false,false,false,false,false,false,false]
[null,"SELECIONAR",null,null,null,null,null,null,null,null,null,false,false,false,false,false,false,false]
[null,"SELECIONAR",null,null,null,null,null,null,null,null,null,false,false,false,false,false,false,false]
[null,"SELECIONAR",null,null,null,null,null,null,null,null,null,false,false,false,false,false,false,false]
[null,"SELECIONAR",null,null,null,null,null,null,null,null,null,false,false,false,false,false,false,false]
[null,"SELECIONAR",null,null,null,null,null,null,null,null,null,false,false,false,false,false,false,false]
[null,"SELECIONAR",null,null,null,null,null,null,null,null,null,false,false,false,false,false,false,false]
[null,"SELECIONAR",null,null,null,null,null,null,null,null,null,false,false,false,false,false,false,false]
[null,"SELECIONAR",null,null,null,null,null,null,null,null,null,false,false,false,false,false,false,false]
[null,"SELECIONAR",null,null,null,null,null,null,null,null,null,false,false,false,false,false,false,false]
[null,"SELECIONAR",null,null,null,null,null,null,null,null,null,false,false,false,false,false,false,false]
[null,"SELECIONAR",null,null,null,null,null,null,null,null,null,false,false,false,false,false,false,false]
[null,"SELECIONAR",null,null,null,null,null,null,null,null,null,false,false,false,false,false,false,false]
[null,"SELECIONAR",null,null,null,null,null,null,null,null,null,false,false,false,false,false,false,false]
[null,"SELECIONAR",null,null,null,null,null,null,null,null,null,false,false,false,false,false,false,false]
[null,"SELECIONAR",null,null,null,null,null,null,null,null,null,false,false,false,false,false,false,false]
[null,"SELECIONAR",null,null,null,null,null,null,null,null,null,false,false,false,false,false,false,false]
[null,"SELECIONAR",null,null,null,null,null,null,null,null,null,false,false,false,false,false,false,false]
[null,"SELECIONAR",null,null,null,null,null,null,null,null,null,false,false,false,false,false,false,false]
[null,"SELECIONAR",null,null,null,null,null,null,null,null,null,false,false,false,false,false,false,false]
[null,"SELECIONAR",null,null,null,null,null,null,null,null,null,false,false,false,false,false,false,false]
[null,"SELECIONAR",null,null,null,null,null,null,null,null,null,false,false,false,false,false,false,false]
[null,"SELECIONAR",null,null,null,null,null,null,null,null,null,false,false,false,false,false,false,false]
[null,"SELECIONAR",null,null,null,null,null,null,null,null,null,false,false,false,false,false,false,false]
[null,"SELECIONAR",null,null,null,null,null,null,null,null,null,false,false,false,false,false,false,false]
[null,"SELECIONAR",null,null,null,null,null,null,null,null,null,false,false,false,false,false,false,false]
[null,"SELECIONAR",null,null,null,null,null,null,null,null,null,false,false,false,false,false,false,false]
[null,"SELECIONAR",null,null,null,null,null,null,null,null,null,false,false,false,false,false,false,false]
[null,"SELECIONAR",null,null,null,null,null,null,null,null,null,false,false,false,false,false,false,false]
[null,"SELECIONAR",null,null,null,null,null,null,null,null,null,false,false,false,false,false,false,false]
[null,"SELECIONAR",null,null,null,null,null,null,null,null,null,false,false,false,false,false,false,false]
[null,"SELECIONAR",null,null,null,null,null,null,null,null,null,false,false,false,false,false,false,false]
[null,"SELECIONAR",null,null,null,null,null,null,null,null,null,false,false,false,false,false,false,false]
[null,"SELECIONAR",null,null,null,null,null,null,null,null,null,false,false,false,false,false,false,false]
[null,"SELECIONAR",null,null,null,null,null,null,null,null,null,false,false,false,false,false,false,false]
[null,"SELECIONAR",null,null,null,null,null,null,null,null,null,false,false,false,false,false,false,false]
[null,"SELECIONAR",null,null,null,null,null,null,null,null,null,false,false,false,false,false,false,false]
[null,"SELECIONAR",null,null,null,null,null,null,null,null,null,false,false,false,false,false,false,false]
[null,"SELECIONAR",null,null,null,null,null,null,null,null,null,false,false,false,false,false,false,false]
[null,"SELECIONAR",null,null,null,null,null,null,null,null,null,false,false,false,false,false,false,false]
[null,"SELECIONAR",null,null,null,null,null,null,null,null,null,false,false,false,false,false,false,false]
[null,"SELECIONAR",null,null,null,null,null,null,null,null,null,false,false,false,false,false,false,false]
[null,"SELECIONAR",null,null,null,null,null,null,null,null,null,false,false,false,false,false,false,false]
[null,"SELECIONAR",null,null,null,null,null,null,null,null,null,false,false,false,false,false,false,false]
[null,"SELECIONAR",null,null,null,null,null,null,null,null,null,false,false,false,false,false,false,false]
[null,"SELECIONAR",null,null,null,null,null,null,null,null,null,false,false,false,false,false,false,false]
[null,"SELECIONAR",null,null,null,null,null,null,null,null,null,false,false,false,false,false,false,false]
[null,"SELECIONAR",null,null,null,null,null,null,null,null,null,false,false,false,false,false,false,false]
[null,"SELECIONAR",null,null,null,null,null,null,null,null,null,false,false,false,false,false,false,false]
[null,"SELECIONAR",null,null,null,null,null,null,null,null,null,false,false,false,false,false,false,false]
[null,"SELECIONAR",null,null,null,null,null,null,null,null,null,false,false,false,false,false,false,false]
[null,"SELECIONAR",null,null,null,null,null,null,null,null,null,false,false,false,false,false,false,false]
[null,"SELECIONAR",null,null,null,null,null,null,null,null,null,false,false,false,false,false,false,false]
[null,"SELECIONAR",null,null,null,null,null,null,null,null,null,false,false,false,false,false,false,false]
[null,"SELECIONAR",null,null,null,null,null,null,null,null,null,false,false,false,false,false,false,false]
[null,"SELECIONAR",null,null,null,null,null,null,null,null,null,false,false,false,false,false,false,false]
[null,"SELECIONAR",null,null,null,null,null,null,null,null,null,false,false,false,false,false,false,false]
[null,"SELECIONAR",null,null,null,null,null,null,null,null,null,false,false,false,false,false,false,false]
[null,"SELECIONAR",null,null,null,null,null,null,null,null,null,false,false,false,false,false,false,false]
[null,"SELECIONAR",null,null,null,null,null,null,null,null,null,false,false,false,false,false,false,false]
[null,"SELECIONAR",null,null,null,null,null,null,null,null,null,false,false,false,false,false,false,false]
[null,"SELECIONAR",null,null,null,null,null,null,null,null,null,false,false,false,false,false,false,false]
[null,"SELECIONAR",null,null,null,null,null,null,null,null,null,false,false,false,false,false,false,false]
[null,"SELECIONAR",null,null,null,null,null,null,null,null,null,false,false,false,false,false,false,false]
[null,"SELECIONAR",null,null,null,null,null,null,null,null,null,false,false,false,false,false,false,false]
[null,"SELECIONAR",null,null,null,null,null,null,null,null,null,false,false,false,false,false,false,false]
[null,"SELECIONAR",null,null,null,null,null,null,null,null,null,false,false,false,false,false,false,false]
[null,"SELECIONAR",null,null,null,null,null,null,null,null,null,false,false,false,false,false,false,false]
[null,"SELECIONAR",null,null,null,null,null,null,null,null,null,false,false,false,false,false,false,false]
[null,"SELECIONAR",null,null,null,null,null,null,null,null,null,false,false,false,false,false,false,false]
[null,"SELECIONAR",null,null,null,null,null,null,null,null,null,false,false,false,false,false,false,false]
[null,"SELECIONAR",null,null,null,null,null,null,null,null,null,false,false,false,false,false,false,false]
[null,"SELECIONAR",null,null,null,null,null,null,null,null,null,false,false,false,false,false,false,false]
[null,"SELECIONAR",null,null,null,null,null,null,null,null,null,false,false,false,false,false,false,false]
[null,"SELECIONAR",null,null,null,null,null,null,null,null,null,false,false,false,false,false,false,false]
[null,"SELECIONAR",null,null,null,null,null,null,null,null,null,false,false,false,false,false,false,false]
[null,"SELECIONAR",null,null,null,null,null,null,null,null,null,false,false,false,false,false,false,false]
[null,"SELECIONAR",null,null,null,null,null,null,null,null,null,false,false,false,false,false,false,false]
[null,"SELECIONAR",null,null,null,null,null,null,null,null,null,false,false,false,false,false,false,false]
[null,"SELECIONAR",null,null,null,null,null,null,null,null,null,false,false,false,false,false,false,false]
[null,"SELECIONAR",null,null,null,null,null,null,null,null,null,false,false,false,false,false,false,false]
[null,"SELECIONAR",null,null,null,null,null,null,null,null,null,false,false,false,false,false,false,false]
[null,"SELECIONAR",null,null,null,null,null,null,null,null,null,false,false,false,false,false,false,false]
[null,"SELECIONAR",null,null,null,null,null,null,null,null,null,false,false,false,false,false,false,false]
[null,"SELECIONAR",null,null,null,null,null,null,null,null,null,false,false,false,false,false,false,false]
[null,"SELECIONAR",null,null,null,null,null,null,null,null,null,false,false,false,false,false,false,false]
[null,"SELECIONAR",null,null,null,null,null,null,null,null,null,false,false,false,false,false,false,false]
[null,"SELECIONAR",null,null,null,null,null,null,null,null,null,false,false,false,false,false,false,false]
[null,"SELECIONAR",null,null,null,null,null,null,null,null,null,false,false,false,false,false,false,false]
[null,"SELECIONAR",null,null,null,null,null,null,null,null,null,false,false,false,false,false,false,false]
[null,"SELECIONAR",null,null,null,null,null,null,null,null,null,false,false,false,false,false,false,false]
[null,"SELECIONAR",null,null,null,null,null,null,null,null,null,false,false,false,false,false,false,false]
[null,"SELECIONAR",null,null,null,null,null,null,null,null,null,false,false,false,false,false,false,false]
[null,"SELECIONAR",null,null,null,null,null,null,null,null,null,false,false,false,false,false,false,false]
[null,"SELECIONAR",null,null,null,null,null,null,null,null,null,false,false,false,false,false,false,false]
[null,"SELECIONAR",null,null,null,null,null,null,null,null,null,false,false,false,false,false,false,false]
[null,"SELECIONAR",null,null,null,null,null,null,null,null,null,false,false,false,false,false,false,false]
[null,"SELECIONAR",null,null,null,null,null,null,null,null,null,false,false,false,false,false,false,false]
[null,"SELECIONAR",null,null,null,null,null,null,null,null,null,false,false,false,false,false,false,false]
[null,"SELECIONAR",null,null,null,null,null,null,null,null,null,false,false,false,false,false,false,false]
[null,"SELECIONAR",null,null,null,null,null,null,null,null,null,false,false,false,false,false,false,false]
[null,"SELECIONAR",null,null,null,null,null,null,null,null,null,false,false,false,false,false,false,false]
[null,"SELECIONAR",null,null,null,null,null,null,null,null,null,false,false,false,false,false,false,false]
[null,"SELECIONAR",null,null,null,null,null,null,null,null,null,false,false,false,false,false,false,false]
[null,"SELECIONAR",null,null,null,null,null,null,null,null,null,false,false,false,false,false,false,false]
[null,"SELECIONAR",null,null,null,null,null,null,null,null,null,false,false,false,false,false,false,false]
[null,"SELECIONAR",null,null,null,null,null,null,null,null,null,false,false,false,false,false,false,false]
[null,"SELECIONAR",null,null,null,null,null,null,null,null,null,false,false,false,false,false,false,false]
[null,"SELECIONAR",null,null,null,null,null,null,null,null,null,false,false,false,false,false,false,false]
[null,"SELECIONAR",null,null,null,null,null,null,null,null,null,false,false,false,false,false,false,false]
[null,"SELECIONAR",null,null,null,null,null,null,null,null,null,false,false,false,false,false,false,false]
[null,"SELECIONAR",null,null,null,null,null,null,null,null,null,false,false,false,false,false,false,false]
[null,"SELECIONAR",null,null,null,null,null,null,null,null,null,false,false,false,false,false,false,false]
[null,"SELECIONAR",null,null,null,null,null,null,null,null,null,false,false,false,false,false,false,false]
[null,"SELECIONAR",null,null,null,null,null,null,null,null,null,false,false,false,false,false,false,false]
[null,"SELECIONAR",null,null,null,null,null,null,null,null,null,false,false,false,false,false,false,false]
[null,"SELECIONAR",null,null,null,null,null,null,null,null,null,false,false,false,false,false,false,false]
[null,"SELECIONAR",null,null,null,null,null,null,null,null,null,false,false,false,false,false,false,false]
[null,"SELECIONAR",null,null,null,null,null,null,null,null,null,false,false,false,false,false,false,false]
[null,"SELECIONAR",null,null,null,null,null,null,null,null,null,false,false,false,false,false,false,false]
[null,"SELECIONAR",null,null,null,null,null,null,null,null,null,false,false,false,false,false,false,false]
[null,"SELECIONAR",null,null,null,null,null,null,null,null,null,false,false,false,false,false,false,false]
[null,"SELECIONAR",null,null,null,null,null,null,null,null,null,false,false,false,false,false,false,false]
[null,"SELECIONAR",null,null,null,null,null,null,null,null,null,false,false,false,false,false,false,false]
[null,"SELECIONAR",null,null,null,null,null,null,null,null,null,false,false,false,false,false,false,false]
[null,"SELECIONAR",null,null,null,null,null,null,null,null,null,false,false,false,false,false,false,false]
[null,"SELECIONAR",null,null,null,null,null,null,null,null,null,false,false,false,false,false,false,false]
[null,"SELECIONAR",null,null,null,null,null,null,null,null,null,false,false,false,false,false,false,false]
[null,"SELECIONAR",null,null,null,null,null,null,null,null,null,false,false,false,false,false,false,false]
[null,"SELECIONAR",null,null,null,null,null,null,null,null,null,false,false,false,false,false,false,false]
[null,"SELECIONAR",null,null,null,null,null,null,null,null,null,false,false,false,false,false,false,false]
[null,"SELECIONAR",null,null,null,null,null,null,null,null,null,false,false,false,false,false,false,false]
[null,"SELECIONAR",null,null,null,null,null,null,null,null,null,false,false,false,false,false,false,false]
[null,"SELECIONAR",null,null,null,null,null,null,null,null,null,false,false,false,false,false,false,false]
[null,"SELECIONAR",null,null,null,null,null,null,null,null,null,false,false,false,false,false,false,false]
[null,"SELECIONAR",null,null,null,null,null,null,null,null,null,false,false,false,false,false,false,false]
[null,"SELECIONAR",null,null,null,null,null,null,null,null,null,false,false,false,false,false,false,false]
[null,"SELECIONAR",null,null,null,null,null,null,null,null,null,false,false,false,false,false,false,false]
[null,"SELECIONAR",null,null,null,null,null,null,null,null,null,false,false,false,false,false,false,false]
[null,"SELECIONAR",null,null,null,null,null,null,null,null,null,false,false,false,false,false,false,false]
[null,"SELECIONAR",null,null,null,null,null,null,null,null,null,false,false,false,false,false,false,false]
[null,"SELECIONAR",null,null,null,null,null,null,null,null,null,false,false,false,false,false,false,false]
[null,"SELECIONAR",null,null,null,null,null,null,null,null,null,false,false,false,false,false,false,false]
[null,"SELECIONAR",null,null,null,null,null,null,null,null,null,false,false,false,false,false,false,false]
[null,"SELECIONAR",null,null,null,null,null,null,null,null,null,false,false,false,false,false,false,false]
[null,"SELECIONAR",null,null,null,null,null,null,null,null,null,false,false,false,false,false,false,false]
[null,"SELECIONAR",null,null,null,null,null,null,null,null,null,false,false,false,false,false,false,false]
[null,"SELECIONAR",null,null,null,null,null,null,null,null,null,false,false,false,false,false,false,false]
[null,"SELECIONAR",null,null,null,null,null,null,null,null,null,false,false,false,false,false,false,false]
[null,"SELECIONAR",null,null,null,null,null,null,null,null,null,false,false,false,false,false,false,false]
[null,"SELECIONAR",null,null,null,null,null,null,null,null,null,false,false,false,false,false,false,false]
[null,"SELECIONAR",null,null,null,null,null,null,null,null,null,false,false,false,false,false,false,false]
[null,"SELECIONAR",null,null,null,null,null,null,null,null,null,false,false,false,false,false,false,false]
[null,"SELECIONAR",null,null,null,null,null,null,null,null,null,false,false,false,false,false,false,false]
[null,"SELECIONAR",null,null,null,null,null,null,null,null,null,false,false,false,false,false,false,false]
[null,"SELECIONAR",null,null,null,null,null,null,null,null,null,false,false,false,false,false,false,false]
[null,"SELECIONAR",null,null,null,null,null,null,null,null,null,false,false,false,false,false,false,false]
[null,"SELECIONAR",null,null,null,null,null,null,null,null,null,false,false,false,false,false,false,false]
[null,"SELECIONAR",null,null,null,null,null,null,null,null,null,false,false,false,false,false,false,false]
[null,"SELECIONAR",null,null,null,null,null,null,null,null,null,false,false,false,false,false,false,false]
[null,"SELECIONAR",null,null,null,null,null,null,null,null,null,false,false,false,false,false,false,false]
[null,"SELECIONAR",null,null,null,null,null,null,null,null,null,false,false,false,false,false,false,false]
[null,"SELECIONAR",null,null,null,null,null,null,null,null,null,false,false,false,false,false,false,false]
[null,"SELECIONAR",null,null,null,null,null,null,null,null,null,false,false,false,false,false,false,false]
[null,"SELECIONAR",null,null,null,null,null,null,null,null,null,false,false,false,false,false,false,false]
[null,"SELECIONAR",null,null,null,null,null,null,null,null,null,false,false,false,false,false,false,false]
[null,"SELECIONAR",null,null,null,null,null,null,null,null,null,false,false,false,false,false,false,false]
[null,"SELECIONAR",null,null,null,null,null,null,null,null,null,false,false,false,false,false,false,false]
[null,"SELECIONAR",null,null,null,null,null,null,null,null,null,false,false,false,false,false,false,false]
[null,"SELECIONAR",null,null,null,null,null,null,null,null,null,false,false,false,false,false,false,false]
[null,"SELECIONAR",null,null,null,null,null,null,null,null,null,false,false,false,false,false,false,false]
[null,"SELECIONAR",null,null,null,null,null,null,null,null,null,false,false,false,false,false,false,false]
[null,"SELECIONAR",null,null,null,null,null,null,null,null,null,false,false,false,false,false,false,false]
[null,"SELECIONAR",null,null,null,null,null,null,null,null,null,false,false,false,false,false,false,false]
[null,"SELECIONAR",null,null,null,null,null,null,null,null,null,false,false,false,false,false,false,false]
[null,"SELECIONAR",null,null,null,null,null,null,null,null,null,false,false,false,false,false,false,false]
[null,"SELECIONAR",null,null,null,null,null,null,null,null,null,false,false,false,false,false,false,false]
[null,"SELECIONAR",null,null,null,null,null,null,null,null,null,false,false,false,false,false,false,false]
[null,"SELECIONAR",null,null,null,null,null,null,null,null,null,false,false,false,false,false,false,false]
[null,"SELECIONAR",null,null,null,null,null,null,null,null,null,false,false,false,false,false,false,false]
[null,"SELECIONAR",null,null,null,null,null,null,null,null,null,false,false,false,false,false,false,false]
[null,"SELECIONAR",null,null,null,null,null,null,null,null,null,false,false,false,false,false,false,false]
[null,"SELECIONAR",null,null,null,null,null,null,null,null,null,false,false,false,false,false,false,false]
[null,"SELECIONAR",null,null,null,null,null,null,null,null,null,false,false,false,false,false,false,false]
[null,"SELECIONAR",null,null,null,null,null,null,null,null,null,false,false,false,false,false,false,false]
[null,"SELECIONAR",null,null,null,null,null,null,null,null,null,false,false,false,false,false,false,false]
[null,"SELECIONAR",null,null,null,null,null,null,null,null,null,false,false,false,false,false,false,false]
[null,"SELECIONAR",null,null,null,null,null,null,null,null,null,false,false,false,false,false,false,false]
[null,"SELECIONAR",null,null,null,null,null,null,null,null,null,false,false,false,false,false,false,false]
[null,"SELECIONAR",null,null,null,null,null,null,null,null,null,false,false,false,false,false,false,false]
[null,"SELECIONAR",null,null,null,null,null,null,null,null,null,false,false,false,false,false,false,false]
[null,"SELECIONAR",null,null,null,null,null,null,null,null,null,false,false,false,false,false,false,false]
[null,"SELECIONAR",null,null,null,null,null,null,null,null,null,false,false,false,false,false,false,false]
[null,"SELECIONAR",null,null,null,null,null,null,null,null,null,false,false,false,false,false,false,false]
[null,"SELECIONAR",null,null,null,null,null,null,null,null,null,false,false,false,false,false,false,false]
[null,"SELECIONAR",null,null,null,null,null,null,null,null,null,false,false,false,false,false,false,false]
[null,"SELECIONAR",null,null,null,null,null,null,null,null,null,false,false,false,false,false,false,false]

{"sheet":"Rosto Candidatura","index":2,"n_rows":51,"n_cols":12,"rows_kept":51,"cut":false,"hidden":false,"merged":[[15,9,15,10],[15,3,15,8],[15,1,15,2],[41,1,42,9],[41,10,42,10],[35,1,37,10],[38,1,38,10],[39,1,40,9],[39,10,40,10],[29,1,34,10],[16,1,16,10],[17,1,17,9],[18,1,18,9],[19,1,19,9],[20,1,20,9],[21,1,21,9],[49,1,50,9],[49,10,50,10],[43,1,44,9],[43,10,44,10],[45,1,46,9],[45,10,46,10],[47,1,48,9],[47,10,48,10],[22,1,22,9],[23,1,23,9],[24,1,24,9],[25,1,25,10],[26,1,28,10],[13,1,13,10],[14,1,14,2],[14,3,14,8],[14,9,14,10],[12,1,12,9],[1,1,2,10],[3,4,3,7],[4,1,4,10],[5,2,5,10],[6,2,6,5],[6,7,6,10],[3,8,3,9],[7,1,7,10],[8,1,8,9],[9,1,9,9],[10,1,10,9],[11,1,11,9]]}
[]
[null,"PROGRAMA NACIONAL PARA APOIO AO SETOR DA APICULTURA\n"]
[]
[null,null,null,"ROSTO","SELECIONAR ",null,null,null,"Selecionar Ano "]
[null,"Identificação do Beneficiário"]
[null,"Nome/Denominação Social "]
[null,"NIF/NIPC",null,null,null,null,"NIFAP"]
[null,"Tipologia de Beneficiário, de acordo com o artigo 5.º da Portaria n.º 54-G/2023, de 27 de fevereiro"]
[null,"N.º 1, alínea a) - Organizações de Produtores (OP)",null,null,null,null,null,null,null,null,false]
[null,"N.º 1, alínea b) - Associações e Cooperativas de Apicultores",null,null,null,null,null,null,null,null,false]
[null,"N.º 1, alínea c) - Uniões, Federações ou Confederações",null,null,null,null,null,null,null,null,false]
[null,"N.º 2, Regiões Autónomas (RA) - Açores",null,null,null,null,null,null,null,null,false]
[null,"N.º 2, Regiões Autónomas (RA) - Madeira",null,null,null,null,null,null,null,null,false]
[null,"Deliberação da Apresentação de Candidatura"]
[null,"Data",null,"Local",null,null,null,null,null,"Doc/Ata nº"]
[]
[null,"Candidatura às Intervenções"]
[null,"B.2.1 «Assistência técnica aos apicultores e organizações de apicultores»",null,null,null,null,null,null,null,null,false,"Formulário B.2.1"]
[null,"B.2.2 «Luta contra a varroose»",null,null,null,null,null,null,null,null,false,"Formulário B.2.2"]
[null,"B.2.3 «Combate à Vespa velutina (vespa asiática)»",null,null,null,null,null,null,null,null,false,"Formulário B.2.3"]
[null,"B.2.4 «Apoio à transumância»",null,null,null,null,null,null,null,null,false,"Formulário B.2.4"]
[null,"B.2.5 «Análises de qualidade do mel ou outros produtos apícolas»",null,null,null,null,null,null,null,null,false,"Formulário B.2.5"]
[null,"B.2.6 «Apoio à aquisição de rainhas autóctones selecionadas»",null,null,null,null,null,null,null,null,false,"Formulário B.2.6"]
[null,"B.2.7 «Apoio a projetos de investigação aplicada»",null,null,null,null,null,null,null,null,false,"Formulário B.2.7"]
[null,"B.2.8 «Melhoria da qualidade dos produtos apícolas»",null,null,null,null,null,null,null,null,false,"Formulário B.2.8"]
[null,"Declaração do Beneficiário ou seu Representante"]
[null,"Declaro que garanto o cumprimento, para com os titulares dos dados pessoais constantes desta candidatura, das exigências e obrigações do Regulamento (UE) 2016/679 do Parlamento Europeu e do Conselho, de 27 de abril (RGPD), designadamente as previstas nos seus artigos n.ºs 5.º e 13.º."]
[]
[]
[null,"Declaro ter conhecimento das condições legais de atribuições das ajudas a que me candidato e confirmo que as informações constantes neste formulário, bem como nos formulários das candidaturas de cada intervenção, são verdadeiras, assumindo a responsabilidade de as alterar sempre que for caso disso e que autorizo essa Instituição ou outras entidades com poder para o efeito, a executar as ações necessárias que visem a sua confirmação."]
[]
[]
[]
[]
[]
[null,"Declaro ainda ter conhecimento de que qualquer pagamento que venha a ser efetuado, com base na presente candidatura, é feito sob condição de verificação anterior dos requisitos de elegibilidade do direito à ajuda, nos termos da legislação nacional e comunitária. Todos os pagamentos são efetuados sob reserva de revogação."]
[]
[]
[null,"Anexos"]
[null,"\tConvocatória da Assembleia geral",null,null,null,null,null,null,null,null,false]
[]
[null,"\tAta da assembleia geral assinada pelo beneficiário/representantes legais com aprovação de candidatura ao PNASA",null,null,null,null,null,null,null,null,false]
[]
[null,"\tEstatutos aprovados em Assembleia Geral com atividade apícola prevista",null,null,null,null,null,null,null,null,false]
[]
[null,"\tCertidão Permanente da Conservatória do Registo Comercial",null,null,null,null,null,null,null,null,false]
[]
[null,"\tDeclaração da Situação Contributiva em sede de Segurança Social ou código de consulta ",null,null,null,null,null,null,null,null,false]
[]
[null,"\tCertidão de Não Dívida em sede de Finanças ou código de consulta ",null,null,null,null,null,null,null,null,false]
[null,null,null,null,null,null,null,null,null,null,false]

{"sheet":"B_2_1","index":3,"n_rows":49,"n_cols":12,"rows_kept":49,"cut":false,"hidden":false,"merged":[[23,1,23,4],[23,5,23,7],[23,8,23,10],[39,1,40,9],[39,10,40,10],[37,1,38,9],[37,10,38,10],[26,1,26,9],[27,1,27,9],[28,1,28,9],[29,1,29,9],[30,1,30,9],[31,1,31,10],[32,1,32,9],[33,1,33,9],[34,1,34,10],[41,1,42,9],[41,10,42,10],[43,1,44,9],[47,1,48,9],[47,10,48,10],[45,1,46,9],[45,10,46,10],[43,10,44,10],[35,1,36,9],[35,10,36,10],[24,1,24,4],[24,5,24,7],[24,8,24,10],[25,1,25,4],[25,5,25,7],[25,8,25,10],[20,1,20,4],[20,5,20,7],[20,8,20,10],[22,1,22,4],[22,5,22,7],[22,8,22,10],[21,1,21,4],[21,5,21,7],[21,8,21,10],[18,1,18,4],[18,5,18,7],[18,8,18,10],[19,1,19,4],[19,5,19,7],[19,8,19,10],[16,1,16,4],[16,5,16,7],[16,8,16,10],[17,1,17,4],[17,5,17,7],[17,8,17,10],[14,1,14,4],[14,5,14,7],[14,8,14,10],[15,1,15,4],[15,5,15,7],[15,8,15,10],[13,1,13,4],[13,5,13,7],[13,8,13,10],[1,1,2,10],[6,1,6,5],[6,6,6,10],[7,1,7,10],[8,2,8,10],[9,2,9,5],[9,7,9,10],[10,1,10,9],[11,1,11,10],[12,1,12,10],[3,1,3,10],[4,1,5,10]]}
[]
[null,"PROGRAMA NACIONAL PARA APOIO AO SETOR DA APICULTURA\n"]
[]
[null,"SELECIONAR "]
[null,"INTERVENÇÃO B.2.1 - SERVIÇOS DE ASSISTÊNCIA TÉCNICA AOS APICULTORES E ORGANIZAÇÕES DE APICULTORES"]
[]
[null,"Ano Apícola",null,null,null,null,"Selecionar Ano "]
[null,"Identificação do Beneficiário"]
[null,"Nome/Denominação Social "]
[null,"NIF/NIPC",null,null,null,null,"NIFAP"]
[null,"Tipologia de Beneficiário, de acordo com o artigo 9.º da Portaria n.º 54-G/2023, de 27 de fevereiro",null,null,null,null,null,null,null,null,"Selecionar tipo de Beneficiário"]
[null,"Divulgação/Demonstração Técnica"]
[null,"Identificação dos Técnicos"]
[null,null,null,null,null,"1º Técnico",null,null,"2º Técnico"]
[null,"Nome do Técnico"]
[null,"NIF"]
[null,"Habilitações Literárias"]
[null,"Formação específica"]
[null,"Vencimento base (anual)"]
[null,"Subs. Refeição (anual)"]
[null,"Despesas de deslocação € (anual)"]
[null," - Previsão Km (anual)"]
[null,"Ajudas de custo € (anual)"]
[null," - Previsão de dias com ajuda de custo (anual)"]
[null,"Encargos da entidade patronal (anual)"]
[null,"Nível de afetação (≥ 40%)"]
[null,"Nº UPP existentes à data de abertura do período da candidatura"]
[null,"Nº Estabelecimentos de Extração e Processamento Mel"]
[null,"N.º de apicultores associados inscritos na candidatura"]
[null,"N.º de colmeias registadas no SNIRA (≥ 200) no conjunto dos apicultores integrados na candidatura "]
[null,"N.º Apiários"]
[null,"Valor da candidatura apresentada"]
[null," Nº de Técnicos"]
[null,"Montante Total (≤ 40 013,38 €)",null,null,null,null,null,null,null,null,"€"]
[null,"Anexos"]
[null,"Documento comprovativo das habilitações académicas do(s) técnico(s) contratado(s) - certificado de habilitações (componente curricular) ou formação especifica no domínio da apicultura",null,null,null,null,null,null,null,null,false]
[]
[null,"Curriculo Vitae do(s) técnico(s) contratado(s)",null,null,null,null,null,null,null,null,false]
[]
[null,"Documento da contabilidade da entidade empregadora que reflita os vencimentos (DMR)",null,null,null,null,null,null,null,null,false]
[]
[null,"Contrato de trabalho com, pelo menos, um técnico que preste serviços de assistência técnica aos apicultores, cuja afetação individual a esta atividade seja igual ou superior a 40 % do tempo completo de trabalho",null,null,null,null,null,null,null,null,false]
[]
[null,"\tRecibo(s) de vencimento do mês anterior à submissão da candidatura",null,null,null,null,null,null,null,null,false]
[]
[null,"\tQuadro de referência para cálculo da ajuda, por técnico, devidamente preenchido",null,null,null,null,null,null,null,null,false,"Quadro Referência"]
[null,null,null,null,null,null,null,null,null,null,false]
[null,"Quando o beneficiário for União, Federação ou Confederação, deve apresentar o plano da necessidade de formação e objetivos da mesma",null,null,null,null,null,null,null,null,false]
[null,null,null,null,null,null,null,null,null,null,false]

{"sheet":"B_2_2","index":4,"n_rows":41,"n_cols":11,"rows_kept":41,"cut":false,"hidden":false,"merged":[[36,1,37,9],[36,10,37,10],[38,1,39,9],[38,10,39,10],[40,1,41,9],[40,10,41,10],[34,1,35,9],[34,10,35,10],[29,3,29,4],[29,5,29,9],[30,3,30,4],[30,5,30,9],[31,3,31,4],[31,5,31,9],[32,3,32,4],[32,5,32,9],[33,1,33,10],[26,3,26,4],[26,5,26,9],[27,3,27,4],[27,5,27,9],[28,3,28,4],[28,5,28,9],[23,3,23,4],[23,5,23,9],[24,3,24,4],[24,5,24,9],[25,3,25,4],[25,5,25,9],[19,1,19,5],[19,6,19,10],[20,1,20,5],[20,6,20,10],[21,1,21,2],[21,5,22,9],[21,10,22,10],[21,3,22,4],[13,10,14,10],[15,1,15,2],[16,1,17,5],[16,6,17,10],[18,1,18,5],[18,6,18,10],[13,1,14,2],[13,3,14,3],[13,4,13,5],[13,6,13,7],[13,8,13,9],[9,2,9,5],[9,7,9,10],[10,1,10,9],[11,1,11,9],[12,1,12,10],[8,2,8,10],[1,1,2,10],[6,1,6,5],[6,6,6,10],[7,1,7,10],[4,1,5,10],[3,1,3,10]]}
[]
[null,"PROGRAMA NACIONAL PARA APOIO AO SETOR DA APICULTURA\n"]
[]
[null,"SELECIONAR "]
[null,"INTERVENÇÃO B.2.2 – LUTA CONTRA A VARROOSE "]
[]
[null,"Ano Apícola",null,null,null,null,"Selecionar Ano "]
[null,"Identificação do Beneficiário"]
[null,"Nome/Denominação Social "]
[null,"NIF/NIPC",null,null,null,null,"NIFAP"]
[null,"Tipologia de Beneficiário, de acordo com o artigo 15.º da Portaria n.º 54-G/2023, de 27 de fevereiro",null,null,null,null,null,null,null,null,"Selecionar tipo de Beneficiário"]
[null,"Entidade Gestora de Zona Controlada",null,null,null,null,null,null,null,null,"EGZC?"]
[null,"Dados sobre a localização das colmeias"]
[null,"Nº apicultores inscritos \n(na candidatura)",null,"Nº Total de colmeias \n(na candidatura)","Nº de colmeias fora da zona controlada (dos apicultores inscritos na candidatura)",null,"Nº de colmeias em zona controlada (dos apicultores inscritos na candidatura)\n Só aplicável para beneficiários EGZC",null,"Nº de colmeias em zona sem varroose \n(dos apicultores inscritos na candidatura)",null,"Montante Total (€)"]
[null,null,null,null,"Nº ","Valor","Nº ","Valor","Nº ","Valor"]
[null,null,null,null,null,5.3,null,5.6749999999999998,null,0.77500000000000002,{"$f":"(E16*F16)+(G16*H16)+(I16*J16)","v":0}]
[null,"Nº de análises anatomopatológicas",null,null,null,null,"Nome do laboratório"]
[]
[null,null,null,null,null,null,"Selecionar Laboratório"]
[null,null,null,null,null,null,"Selecionar Laboratório"]
[null,null,null,null,null,null,"Selecionar Laboratório"]
[null,"Nº colmeia a tratar",null,"Nº tratamentos por colmeia",null,"Nome comercial do(s) medicamento(s) veterinário(s)",null,null,null,null,"Dose por colmeia"]
[null,"FZC","ZC"]
[null,null,null,null,null,"Selecionar Medicamento"]
[null,null,null,null,null,"Selecionar Medicamento"]
[null,null,null,null,null,"Selecionar Medicamento"]
[null,null,null,null,null,"Selecionar Medicamento"]
[null,null,null,null,null,"Selecionar Medicamento"]
[null,null,null,null,null,"Selecionar Medicamento"]
[null,null,null,null,null,"Selecionar Medicamento"]
[null,null,null,null,null,"Selecionar Medicamento"]
[null,null,null,null,null,"Selecionar Medicamento"]
[null,null,null,null,null,"Selecionar Medicamento"]
[null,"Anexos"]
[null,"Plano sanitário com a informação necessário de acordo com o modelo da DGAV",null,null,null,null,null,null,null,null,false]
[]
[null,"Documento comprovativo das habilitações académicas do(s) técnico(s) contratado(s) - certificado de habilitações (componente curricular) ou formação especifica no domínio da apicultura (se não se candidatou à intervenção B.2.1)",null,null,null,null,null,null,null,null,false]
[]
[null,"Curriculo Vitae do(s) técnico(s) contratado(s) (se não se candidatou à intervenção B.2.1)",null,null,null,null,null,null,null,null,false]
[]
[null,"Contrato de trabalho com, pelo menos, um técnico  (se não se candidatou à intervenção B.2.1)",null,null,null,null,null,null,null,null,false]

{"sheet":"B_2_3","index":5,"n_rows":31,"n_cols":11,"rows_kept":31,"cut":false,"hidden":false,"merged":[[26,10,27,10],[30,1,31,9],[30,10,31,10],[28,1,29,9],[28,10,29,10],[24,9,24,10],[23,1,23,2],[23,3,23,4],[23,5,23,6],[23,7,23,8],[23,9,23,10],[25,1,25,10],[26,1,27,9],[21,1,21,2],[21,3,21,4],[21,5,21,6],[21,7,21,8],[21,9,21,10],[22,1,22,2],[22,3,22,4],[22,5,22,6],[22,7,22,8],[22,9,22,10],[24,1,24,2],[24,3,24,4],[24,5,24,6],[24,7,24,8],[19,1,19,2],[19,3,19,4],[19,5,19,6],[19,7,19,8],[19,9,19,10],[20,1,20,2],[20,3,20,4],[20,5,20,6],[20,7,20,8],[20,9,20,10],[18,1,18,10],[15,1,15,2],[15,3,15,4],[15,5,15,6],[15,7,15,8],[15,9,15,10],[16,1,16,2],[16,3,16,4],[16,5,16,6],[16,7,16,8],[16,9,16,10],[17,1,17,2],[17,3,17,4],[17,5,17,6],[17,7,17,8],[17,9,17,10],[13,3,13,4],[13,5,13,6],[13,7,13,8],[13,9,13,10],[13,1,13,2],[14,3,14,4],[14,5,14,6],[14,7,14,8],[14,9,14,10],[14,1,14,2],[9,2,9,5],[9,7,9,10],[10,1,10,9],[11,1,11,10],[12,1,12,2],[12,3,12,4],[12,5,12,6],[12,7,12,8],[12,9,12,10],[8,2,8,10],[1,1,2,10],[6,1,6,5],[6,6,6,10],[7,1,7,10],[4,1,5,10],[3,1,3,10]]}
[]
[null,"PROGRAMA NACIONAL PARA APOIO AO SETOR DA APICULTURA\n"]
[]
[null,"SELECIONAR "]
[null,"INTERVENÇÃO B.2.3 - COMBATE À VESPA VELUTINA"]
[]
[null,"Ano Apícola",null,null,null,null,"Selecionar Ano "]
[null,"Identificação do Beneficiário"]
[null,"Nome/Denominação Social "]
[null,"NIF/NIPC",null,null,null,null,"NIFAP"]
[null,"Tipologia de Beneficiário, de acordo com o artigo 21.º da Portaria n.º 54-G/2023, de 27 de fevereiro",null,null,null,null,null,null,null,null,"Selecionar tipo de Beneficiário"]
[null,"Aquisição de material destinado ao combate à Vespa velutina"]
[null,"Material",null,"Quantidade",null,"Fornecedor",null,"NIF Fornecedor",null,"Valor (€)"]
[]
[]
[]
[]
[]
[null,"Aquisição de equipamento para a prevenção e vigilância em apiários de sentinela"]
[null,"Equipamento",null,"Quantidade",null,"Fornecedor",null,"NIF Fornecedor",null,"Valor (€)"]
[]
[]
[]
[]
[]
[null,"Anexos"]
[null,"Fatura do material/equipamento",null,null,null,null,null,null,null,null,false]
[]
[null,"Documento com indicação do concelho e freguesia onde estão instalados os apiários - combate à Vespa velutina",null,null,null,null,null,null,null,null,false]
[]
[null,"Documento com indicação do concelho e freguesia onde estão instalados os apiários - prevenção e vigilância da Vespa velutina",null,null,null,null,null,null,null,null,false]

{"sheet":"B_2_4","index":6,"n_rows":29,"n_cols":11,"rows_kept":29,"cut":false,"hidden":false,"merged":[[24,1,25,9],[24,10,25,10],[26,1,27,9],[26,10,27,10],[28,1,29,9],[28,10,29,10],[20,3,20,9],[21,3,21,9],[22,1,22,9],[14,1,14,9],[15,1,15,10],[16,1,16,2],[16,3,16,9],[17,3,17,9],[23,1,23,10],[13,1,13,9],[1,1,2,10],[6,1,6,5],[6,6,6,10],[7,1,7,10],[8,2,8,10],[9,2,9,5],[9,7,9,10],[10,1,10,9],[11,1,11,10],[12,1,12,9],[4,1,5,10],[3,1,3,10],[18,3,18,9],[19,3,19,9]]}
[]
[null,"PROGRAMA NACIONAL PARA APOIO AO SETOR DA APICULTURA\n"]
[]
[null,"SELECIONAR "]
[null,"INTERVENÇÃO B.2.4 - APOIO À TRANSUMÂNCIA"]
[]
[null,"Ano Apícola",null,null,null,null,"Selecionar Ano "]
[null,"Identificação do Beneficiário"]
[null,"Nome/Denominação Social "]
[null,"NIF/NIPC",null,null,null,null,"NIFAP"]
[null,"Tipologia de Beneficiário, de acordo com o artigo 27.º da Portaria n.º 54-G/2023, de 27 de fevereiro",null,null,null,null,null,null,null,null,"Selecionar tipo de Beneficiário"]
[null,"Operações de transumância comunicadas à DGAV"]
[null,"Número de apiculores inscritos na candidatura"]
[null,"Número de colmeias transumantes"]
[null,"Número de apiários transumantes"]
[null,"Aquisição de serviços ou Aluguer de equipamentos"]
[null,"Serviço/equipamento",null,"Fornecedor",null,null,null,null,null,null,"Montante (€)"]
[null,"Transportes",false]
[null,"Gruas",false]
[null,"Reboques",false]
[null,"Plataformas de elevação\n",false]
[null,"Paletização de colmeias",false]
[null,"Montante total (€)",null,null,null,null,null,null,null,null,{"$f":"SUM(K18:K22)","v":0}]
[null,"Anexos"]
[null,"Fatura do serviço ou aluguer de equipamentos",null,null,null,null,null,null,null,null,false]
[]
[null,"Plano de atividades que inclua a calendarização das operações de transumância\n",null,null,null,null,null,null,null,null,false]
[]
[null,"Formulário de comunicação à DGAV das operações de transumância ",null,null,null,null,null,null,null,null,false]

{"sheet":"B_2_5","index":7,"n_rows":25,"n_cols":11,"rows_kept":25,"cut":false,"hidden":false,"merged":[[22,1,23,9],[22,10,23,10],[24,1,25,9],[24,10,25,10],[16,5,16,9],[21,1,21,10],[17,2,17,4],[17,5,17,9],[18,2,18,4],[18,5,18,9],[19,2,19,4],[19,5,19,9],[20,1,20,9],[9,2,9,5],[9,7,9,10],[10,1,10,9],[12,1,12,10],[13,2,13,4],[13,5,13,9],[11,1,11,5],[11,7,11,9],[14,2,14,4],[14,5,14,9],[15,2,15,4],[15,5,15,9],[16,2,16,4],[8,2,8,10],[1,1,2,10],[6,1,6,5],[6,6,6,10],[7,1,7,10],[4,1,5,10],[3,1,3,10]]}
[]
[null,"PROGRAMA NACIONAL PARA APOIO AO SETOR DA APICULTURA\n"]
[]
[null,"SELECIONAR "]
[null,"INTERVENÇÃO B.2.5 - ANÁLISES DE QUALIDADE DO MEL OU OUTROS PRODUTOS DA COLMEIA"]
[]
[null,"Ano Apícola",null,null,null,null,"Selecionar Ano "]
[null,"Identificação do Beneficiário"]
[null,"Nome/Denominação Social "]
[null,"NIF/NIPC",null,null,null,null,"NIFAP"]
[null,"Tipologia de Beneficiário, de acordo com o artigo 33.º da Portaria n.º 54-G/2023, de 27 de fevereiro",null,null,null,null,null,null,null,null,"Selecionar tipo de Beneficiário"]
[null,"Detentor de estabelecimento de extração e processamento de mel ",null,null,null,null,false,"Unidade Produção Primária (UPP)",null,null,false]
[null,"Análises aos produtos da colmeia "]
[null,"Nº de análises","Análises elegíveis (DGAV)",null,null,"Nome do Laboratório aprovado (DGAV)",null,null,null,null,"Valor Total (€)"]
[null,null,"Selecionar análise",null,null,"Selecionar Laboratório"]
[null,null,"Selecionar análise",null,null,"Selecionar Laboratório"]
[null,null,"Selecionar análise",null,null,"Selecionar Laboratório"]
[null,null,"Selecionar análise",null,null,"Selecionar Laboratório"]
[null,null,"Selecionar análise",null,null,"Selecionar Laboratório"]
[null,null,"Selecionar análise",null,null,"Selecionar Laboratório"]
[null,"Montante total (€)",null,null,null,null,null,null,null,null,{"$f":"SUM(K15:K20)","v":0}]
[null,"Anexos"]
[null,"Caso seja(m) o(s) associado(s) o(s) detentor(es) de estabelecimento(s) de extração e processamento de mel, deverá anexar à candidatura, lista com a identificação do(s) mesmo(s) bem como a indicação do(s) respetivo(s) número(s) de controlo veterinário (NCV)",null,null,null,null,null,null,null,null,false]
[]
[null,"Caso seja(m) o(s) associado(s) o(s) detentor(es) da(s) UPP deverá anexar à candidatura, lista com a identificação do(s) mesmo(s), bem como o (s) respetivo(s) n.º de apicultor",null,null,null,null,null,null,null,null,false]

{"sheet":"B_2_6","index":8,"n_rows":18,"n_cols":11,"rows_kept":18,"cut":false,"hidden":false,"merged":[[15,7,15,10],[15,3,15,4],[15,5,15,6],[17,1,17,2],[13,7,13,10],[14,7,14,10],[12,3,12,4],[13,3,13,4],[14,3,14,4],[13,5,13,6],[12,5,12,6],[14,5,14,6],[16,2,16,10],[17,3,17,10],[1,1,2,10],[6,1,6,5],[6,6,6,10],[7,1,7,10],[8,2,8,10],[4,1,5,10],[3,1,3,10],[9,2,9,5],[9,7,9,10],[10,1,10,9],[11,3,11,4],[11,5,11,6],[11,7,11,10],[12,7,12,10]]}
[]
[null,"PROGRAMA NACIONAL PARA APOIO AO SETOR DA APICULTURA\n"]
[]
[null,"SELECIONAR "]
[null,"INTERVENÇÃO B.2.6 - APOIO À AQUISIÇÃO DE RAINHAS AUTÓCTONES SELECIONADAS"]
[]
[null,"Ano Apícola",null,null,null,null,"Selecionar Ano "]
[null,"Identificação do Beneficiário"]
[null,"Nome/Denominação Social "]
[null,"NIF/NIPC",null,null,null,null,"NIFAP"]
[null,"Tipologia de Beneficiário, de acordo com o artigo 39.º da Portaria n.º 54-G/2023, de 27 de fevereiro",null,null,null,null,null,null,null,null,"Selecionar tipo de Beneficiário"]
[null,"Nº de apicultores","Nº de colmeiras","Nº de rainhas autóctones fecundadas",null,"Valor unitário(≤ 10 €)",null,"Centro de Criação de Rainhas"]
[null,null,null,null,null,null,null,"Selecionar Centro de Criação de Rainhas"]
[null,null,null,null,null,null,null,"Selecionar Centro de Criação de Rainhas"]
[null,null,null,null,null,null,null,"Selecionar Centro de Criação de Rainhas"]
[null,null,null,null,null,null,null,"Selecionar Centro de Criação de Rainhas"]
[null,"Nº total de rainhas elegíveis",{"$f":"(SUM(C13:C16))/2","v":0}]
[null,"TOTAL",null,{"$f":"((D13*F13)+(D14*F14)+(D15*F15)+(D16*F16))","v":0}]

{"sheet":"B_2_7","index":9,"n_rows":45,"n_cols":11,"rows_kept":45,"cut":false,"hidden":false,"merged":[[40,1,41,9],[40,10,41,10],[42,1,43,9],[42,10,43,10],[44,1,45,9],[44,10,45,10],[29,1,29,9],[30,1,30,9],[31,1,31,9],[32,1,32,9],[39,1,39,10],[33,1,33,9],[34,1,34,9],[35,1,35,9],[36,1,36,9],[37,1,37,9],[38,1,38,9],[24,1,24,9],[25,1,25,9],[26,1,26,9],[27,1,27,9],[28,1,28,9],[19,1,19,9],[20,1,20,9],[21,1,21,9],[22,1,22,9],[23,1,23,9],[15,1,15,10],[16,1,16,9],[17,1,17,9],[18,1,18,9],[14,1,14,3],[12,4,12,10],[14,4,14,10],[13,5,13,7],[13,9,13,10],[9,2,9,5],[9,7,9,10],[10,1,10,9],[11,1,11,10],[12,1,12,3],[13,1,13,3],[8,2,8,10],[1,1,2,10],[6,1,6,5],[6,6,6,10],[7,1,7,10],[4,1,5,10],[3,1,3,10]]}
[]
[null,"PROGRAMA NACIONAL PARA APOIO AO SETOR DA APICULTURA\n"]
[]
[null,"SELECIONAR "]
[null,"INTERVENÇÃO B.2.7 - APOIO A PROJETOS DE INVESTIGAÇÃO APLICADA"]
[]
[null,"Ano Apícola",null,null,null,null,"Selecionar Ano "]
[null,"Identificação do Beneficiário"]
[null,"Nome/Denominação Social "]
[null,"NIF/NIPC",null,null,null,null,"NIFAP"]
[null,"Tipologia de Beneficiário, de acordo com o artigo 44.º da Portaria n.º 54-G/2023, de 27 de fevereiro",null,null,null,null,null,null,null,null,"Selecionar tipo de Beneficiário"]
[null,"Projeto\n"]
[null,"Número do Projeto"]
[null,"Período de execução do Projeto",null,null,"Início",null,null,null,"Fim"]
[null,"Identificação do Projeto"]
[null,"Tipologia "]
[null,"Atividades científicas",null,null,null,null,null,null,null,null,"Montante"]
[]
[]
[]
[]
[]
[]
[]
[]
[]
[]
[null,"Divulgação e demonstração de resultados",null,null,null,null,null,null,null,null,"Montante"]
[]
[]
[]
[]
[]
[]
[]
[]
[]
[]
[null,"Montante Total (€)",null,null,null,null,null,null,null,null,{"$f":"SUM(K18:K27+K29:K38)","v":0}]
[null,"Anexos"]
[null,"Acordo de parceria entre os beneficiários e os parceiros",null,null,null,null,null,null,null,null,false]
[]
[null,"Memória descritiva do projeto de invertigação",null,null,null,null,null,null,null,null,false]
[]
[null,"Cronograma e mapa de programação e execução financeira do projeto de investigação anualizado\n",null,null,null,null,null,null,null,null,false]

{"sheet":"B_2_8","index":10,"n_rows":39,"n_cols":11,"rows_kept":39,"cut":false,"hidden":false,"merged":[[17,2,17,5],[34,1,35,9],[34,10,35,10],[36,1,37,9],[36,10,37,10],[26,1,27,9],[26,10,27,10],[22,1,22,7],[21,8,21,10],[22,8,22,10],[24,1,24,7],[24,8,24,10],[25,1,25,10],[23,1,23,7],[23,8,23,10],[19,1,19,10],[38,1,39,9],[38,10,39,10],[28,1,29,9],[28,10,29,10],[30,1,31,9],[30,10,31,10],[32,1,33,9],[32,10,33,10],[20,8,20,10],[20,1,20,7],[21,1,21,7],[9,2,9,5],[9,7,9,10],[10,1,10,9],[11,1,11,10],[12,1,12,10],[18,1,18,9],[13,6,13,8],[14,6,14,8],[15,6,15,8],[16,6,16,8],[17,6,17,8],[13,1,13,5],[14,2,14,5],[15,2,15,5],[16,2,16,5],[8,2,8,10],[1,1,2,10],[6,1,6,5],[6,6,6,10],[7,1,7,10],[4,1,5,10],[3,1,3,10]]}
[]
[null,"PROGRAMA NACIONAL PARA APOIO AO SETOR DA APICULTURA\n"]
[]
[null,"SELECIONAR "]
[null,"INTERVENÇÃO B.2.8 - MELHORIA DA QUALIDADE DOS PRODUTOS APÍCOLAS"]
[]
[null,"Ano Apícola",null,null,null,null,"Selecionar Ano "]
[null,"Identificação do Beneficiário"]
[null,"Nome/Denominação Social "]
[null,"NIF/NIPC",null,null,null,null,"NIFAP"]
[null,"Tipologia de Beneficiário, de acordo com o artigo 51.º da Portaria n.º 54-G/2023, de 27 de fevereiro",null,null,null,null,null,null,null,null,"Selecionar tipo de Beneficiário"]
[null,"Tipo de Investimento "]
[null,"Aquisição de equipamentos"]
[null,"Equipamento ",null,null,null,null,"Fornecedor",null,null,"NIF Fornecedor","Montante (€)"]
[null,"Extração "]
[null,"Processamento"]
[null,"Climatização"]
[null,"Máquina lavadora de alta pressão"]
[null,"Subtotal (€)",null,null,null,null,null,null,null,null,{"$f":"SUM(K15:K18)","v":0}]
[null,"Construção ou remodelação e adaptação das infraestruturas"]
[null,"Infraestrutura",null,null,null,null,null,null,"Montante (€)"]
[null,"Melhoria e requalificação de estabelecimentos existentes "]
[null,"Implementação de novos estabelecimentos"]
[null,"Subtotal (€)",null,null,null,null,null,null,{"$f":"SUM(I22:K23)","v":0}]
[null,"TOTAL(€)",null,null,null,null,null,null,{"$f":"K19+I24","v":0}]
[null,"Anexos"]
[null,"Memória descritiva",null,null,null,null,null,null,null,null,false]
[]
[null,"Proposta de orçamento",null,null,null,null,null,null,null,null,false]
[]
[null,"Cronograma e mapa de programação\n",null,null,null,null,null,null,null,null,false]
[]
[null,"Comprovativos de licenciamento",null,null,null,null,null,null,null,null,false]
[]
[null,"Estudo de viabilidade económica",null,null,null,null,null,null,null,null,false]
[]
[null,"Certificação de regimes de qualidade MPB, DOP, IGP ou produção de méis monoflorais\n",null,null,null,null,null,null,null,null,false]
[]
[null,"Mapa de despesas (fornecedor, equipamento, custo)",null,null,null,null,null,null,null,null,false]

{"sheet":"Quadro Referência","index":11,"n_rows":33,"n_cols":6,"rows_kept":33,"cut":false,"hidden":false,"merged":[[12,4,12,5],[16,4,16,5],[17,4,17,5],[18,4,18,5],[19,4,19,5],[13,4,13,5],[14,4,14,5],[15,4,15,5],[0,1,1,5],[11,1,11,5],[32,1,32,5],[31,1,31,5],[19,1,19,3],[21,1,21,5],[3,2,3,5],[23,4,23,5],[25,4,25,5],[25,1,25,3],[29,1,29,5],[30,1,30,5],[28,1,28,5],[26,1,26,3],[26,4,26,5],[22,4,22,5]]}
[null,"QUADRO DE REFERÊNCIA PARA CÁLCULO DA AJUDA"]
[]
[]
[null,"Nome do Técnico: "]
[]
[null,"Vencimento Base"]
[null,"Valor do subsídio de refeição *"]
[null,"Ajudas de custo - valor mensal estimado **",null,null,"Kms mensais","€/Km ***"]
[null,"Apoio ao km - valor mensal estimado***"]
[null,"Taxa contributiva da entidade empregadora ****",0.223]
[]
[null,"Valor no Recibo de Vencimento"]
[null,"Rubrica","Periodicidade","V. Referência","Abonos"]
[null,"Vencimento Base","Mensal (x 12)",{"$f":"C6","v":0},{"$f":"D14*12","v":0}]
[null,"Subsídio de Férias","Anual",{"$f":"C6","v":0},{"$f":"D15","v":0}]
[null,"Subsídio de Natal","Anual",{"$f":"C6","v":0},{"$f":"D16","v":0}]
[null,"Subsídio de refeição *","Mensal (x 11)",{"$f":"22*C7","v":0},{"$f":"D17*11","v":0}]
[null,"Ajudas de Custo **","Mensal (x 11)",{"$f":"C8","v":0},{"$f":"D18*11","v":0}]
[null,"Apoio ao km ***","Mensal (x 11)",{"$f":"C9","v":0},{"$f":"D19*11","v":0}]
[null,"TOTAL",null,null,{"$f":"SUM(E14:F19)","v":0}]
[]
[null,"Valores não incluídos no recibo de vencimento"]
[null,"Rubrica","Periodicidade","V. Referência","Abonos"]
[null,"Encargos da Entidade Patronal (22,3 %) ****","Mensal (x 14)",{"$f":"C6*C10","v":0},{"$f":"D24*14","v":0}]
[]
[null,"Valor a colocar na candidatura",null,null,{"$f":"E20+E24","v":0}]
[null,"Valor a colocar na candidatura a 70%",null,null,{"$f":"(E20+E24)*0.7","v":0}]
[]
[null,"NOTAS"]
[null,"* O valor referência do subsídio de refeição é de 6 €/dia - O valor apresentado considera 22 dias de trabalho mensal, que será multiplicado por 11 de trabalho efetivo (durante o mês de férias não se pode contabilizar o subsísdio de refeição, pois este só é devido nos períodos em que o trabalhador efetivamente trabalha)."]
[null,"** Colocar um valor estimado mensal que será multiplicado por 11 de trabalho efetivo (o mês de férias não será contabilizado)."]
[null,"*** O valor referência de ajuda ao Km é 0,40€/Km"]
[null,"**** Valor correspondente aos trabalhadores de outras entidades sem fins lucrativos, como as associações e cooperativas. Consultar tabela disponibilizada."]

{"sheet":"Dados","index":12,"n_rows":25,"n_cols":9,"rows_kept":25,"cut":false,"hidden":true,"merged":[]}
["Selecionar Ano ","Validação ","Data","Selecionar tipo de Beneficiário","Selecionar Nível de Afetação","EGZC?","Selecionar Medicamento","Selecionar análise","Selecionar Laboratório"]
[2025,"x",null,"Organizações de Produtores Reconhecidas (OP)",0.4,"Sim","Apivar 500 mg, tiras antiparasitárias para abelhas melíferas","Análises Físico Químicas","ALS- Life Science Portugal, SA ( anterior denominação Controlvet, S.A )"]
[2026,null,null,"Associações e Cooperativas",0.5,"Não","Formicpro 68,2 g tiras para colmeia de abelhas melíferas","Análises Microbiológicas","Laboratório de Química da Escola Superior Agrária de Bragança"]
[2027,null,null,"Uniões, Federações ou Confederações",0.7,null,"Amicel varroa solução para tiras para colmeia","Análises Superfícies","Laboratório de química e bioquímica da ESTG- Instituto Politécnico de Portalegre"]
[null,null,null,null,0.9,null,"Apiguard® 25% timol por bandeja para colmeia de abelhas do mel","Análises Resíduos Acaricídas","Intertek Portugal Food Service - Audits & Inspections"]
[null,null,null,null,1,null,"Apistan®; 0,8g / tira antiparasitária para colmeias","Análise Resíduos Antibióticos ","CATAA - Associação Centro de Apoio Tecnológico Agro-Alimentar de Castelo BrancoLaboratórios de Físico-Química e de Microbiologia"]
["Selecionar tipo de Beneficiário","Selecionar Laboratório",null,"Selecionar Centro de Criação de Rainhas","Selecionar tipo de Beneficiário",null,"Oxybee pó e solução para dispersão de 39,4 mg/ml para colmeias de abelhas melíferas","Análises Resíduos Tetraciclinas","Laboratórios APINEVADA"]
["Organizações de Produtores Reconhecidas (OP)","Laboratório de Patologia Apícola do INIAV- Lisboa",null,"Centro de Criação de Rainhas do Vale do Rosmaninho - Registo nº PT2W06CCR","Uniões, Federações ou Confederações",null,"Api-Bioxal 44,2 mg/ml solução para uso em colmeias","Análises Resíduos Sulfamidas"]
["Associações e Cooperativas","Laboratório de Sanidade Animal da DRAP Centro – Lirião",null," LOUSÃMEL – Registo nº PT2W08CCR",null,null,"Api-bioxal, 886 mg/g pó para uso em colmeias","Análises Polínicas"]
["Secretaria Regional da Agricultura e Desenvolvimento Rural da Madeira","Laboratório de Patologia Apícola da Escola Superior Agrária de Bragança",null,"Centro de Criação de Rainhas José Teixeira, Sociedade\nUnipessoal, Lda. - Registo nº PT1W09CCR",null,null,"Apifor solução para colmeias","Análises Cor"]
[null,"Laboratório Regional de Veterinária dos Açores",null,"Centro de Criação de Rainhas MACMEL, Lda. - Registo nº PT1W10CCR",null,null,"Apilife var tira para colmeias de abelhas","Análises Aeróbias Mesófilos"]
[null,null,null,"Centro de Criação de Rainhas Apicercas Unipessoal, Lda. - Registo nº PT8W11CCR",null,null,"Calistrip Biox 6,44 g tiras para colmeias de abelhas","Análises Bolores/Leveduras"]
["SELECIONAR ",null,null,null,null,null,"Apitraz 500 mg tiras para colmeias de abelhas","Análises Clostridium Sulfito Redutores"]
["CANDIDATURA",null,null,null,null,null,"Varromed 5 mg/ml + 44 mg/ml suspensão para dispersão para colmeias de abelhas melíferas","Análises Enterobactérias"]
["PEDIDO DE ALTERAÇÃO DA CANDIDATURA",null,null,null,null,null,"Varromed 75 mg + 660 mg suspensão para dispersão para colmeias de abelhas melíferas","Análises Metais Pesados (Chumbo)"]
[null,null,null,null,null,null,"Thymovar","Análises PH e acidez livre"]
["SELECIONAR",null,null,null,null,null,"Oxuvar 5,7%, 41, mg/ml concentrado para solução para abelhas","Análises Condutividade"]
["Apicultor",null,null,null,null,null,"Varroxal 0.71 g/g pó para colmeias","Análises HMF"]
["UPP",null,null,null,null,null,"Formivar 60, 60 g de ácido fórmico / 100 g de solução para colónias de abelhas do mel","Análises Humidade"]
["Estabelecimento de extração e de processamento de mel",null,null,null,null,null,"Formivar 85, 85 g de ácido fórmico / 100 g de solução para colónias de abelhas do mel","Análises Espectro açúcares"]
[null,null,null,null,null,null,null,"Análises Índice diastásico"]
[null,null,null,null,null,null,null,"Análises Densidade"]
[null,null,null,null,null,null,null,"Análises Nutricionais Reg 1169/11"]
[null,null,null,null,null,null,null,"Análises Nutricionais Standard"]
[null,null,null,null,null,null,null,"Análises Polen predominante"]